bitfinex-derivatives/quotes_ETHF0:USTF0_20250314
["timestamp","ask_amount","ask_price","bid_price","bid_amount"]
[1741930405542,0.00792246,1895.5,1895.4,1.9972]
[1741930405942,0.00792246,1895.5,1895.4,3.05257]
[1741930421351,1.35292246,1895.5,1895.4,3.05257]
[1741930422953,0.00792246,1895.5,1895.4,3.05257]
[1741930434563,1.40382246,1895.5,1895.4,3.05257]
[1741930435266,1.40382246,1895.5,1895.4,6.26037]
[1741930443966,0.00792246,1895.5,1895.4,6.26037]
[1741930452071,1.06328246,1895.5,1895.3,10.76141]
[1741930452270,2.0486,1895.4,1895.3,10.76141]
[1741930452573,2.7405,1895.4,1895.3,10.76141]
[1741930453473,2.7405,1895.4,1895.3,1.05541]
[1741930454470,0.00792246,1895.5,1895.2,3.21572246]
[1741930454471,0.00792246,1895.5,1895.4,1.05537]
[1741930454675,1.33262246,1895.5,1895.4,4.26317]
[1741930454971,1.33262246,1895.5,1895.4,4.92507]
[1741930472480,1.33262246,1895.5,1895.4,6.25137]
[1741930480198,1.33262246,1895.5,1895.4,3.04357]
[1741930480393,1.33262246,1895.5,1895.4,6.25137]
[1741930481788,1.33262246,1895.5,1895.4,5.58947]
[1741930489105,1.06392308,1896.0,1895.9,1.05509]
[1741930489401,1.77502308,1896.0,1895.9,1.05509]
[1741930489596,0.7111,1896.0,1895.9,1.05509]
[1741930490500,2.1041,1896.0,1895.9,2.40479]
[1741930492294,3.15914,1896.0,1895.8,4.26293]
[1741930492495,1.4321,1895.9,1895.8,5.69253]
[1741930492802,1.4321,1895.9,1895.8,2.48473]
[1741930493900,1.4321,1895.9,1895.8,5.69253]
[1741930497208,1.4321,1895.9,1895.6,3.2078]
[1741930497403,0.7202,1895.8,1895.7,1.05518]
[1741930497706,0.7202,1895.8,1895.7,2.36378]
[1741930498500,0.7202,1895.8,1895.7,1.3086]
[1741930498694,1.0552,1895.7,1895.6,3.2078]
[1741930498898,1.7434,1895.7,1895.6,3.2078]
[1741930499104,3.1151,1895.7,1895.6,3.2078]
[1741930499308,2.0599,1895.7,1895.6,4.26306]
[1741930503812,3.1151,1895.7,1895.6,3.2078]
[1741930504016,2.0599,1895.7,1895.6,3.2078]
[1741930504199,3.1151,1895.7,1895.6,3.2078]
[1741930505107,2.0599,1895.7,1895.6,4.26306]
[1741930506809,3.1151,1895.7,1895.6,3.2078]
[1741930507007,2.0599,1895.7,1895.4,5.63205]
[1741930507209,1.3707,1895.6,1895.4,5.63205]
[1741930507414,1.05532,1895.5,1895.4,3.2078]
[1741930507709,1.71542,1895.5,1895.4,3.2078]
[1741930508306,0.6601,1895.5,1895.4,4.26317]
[1741930508609,0.6601,1895.5,1895.4,5.57667]
[1741930509114,2.0972,1895.5,1895.4,5.57667]
[1741930509310,3.15252,1895.5,1895.4,5.57667]
[1741930510211,3.15252,1895.5,1895.4,3.2078]
[1741930510800,2.0972,1895.5,1895.3,2.45931]
[1741930511006,3.13827,1895.4,1895.3,2.45931]
[1741930511206,2.0829,1895.4,1895.3,2.45931]
[1741930511414,3.13827,1895.4,1895.3,2.45931]
[1741930511612,2.0829,1895.4,1895.3,2.45931]
[1741930515112,1.3652,1895.4,1895.3,2.45931]
[1741930516105,0.6907,1895.6,1895.3,1.4039]
[1741930516414,0.6907,1895.6,1895.2,3.21572246]
[1741930516415,0.6907,1895.6,1895.5,1.05532]
[1741930516614,0.6907,1895.6,1895.5,4.26312]
[1741930516909,2.9104,1895.8,1895.5,3.2078]
[1741930517103,3.6011,1895.8,1895.6,1.05524]
[1741930517305,4.65629,1895.8,1895.6,1.05524]
[1741930517503,3.6011,1895.8,1895.7,2.443]
[1741930517708,2.41925,1895.8,1895.7,2.443]
[1741930517909,1.3641,1895.8,1895.7,2.443]
[1741930518112,0.6907,1895.8,1895.7,2.443]
[1741930518713,3.21572246,1896.1,1896.0,1.05504]
[1741930518912,0.00792246,1896.1,1896.0,1.05504]
[1741930519215,2.48032,1896.4,1896.2,1.05491]
[1741930519418,2.48032,1896.4,1896.3,1.3878]
[1741930519615,1.05482,1896.4,1896.3,1.3878]
[1741930519819,1.0549,1896.3,1896.1,0.6626]
[1741930520118,1.7545,1896.3,1896.1,1.71758]
[1741930520313,1.7545,1896.3,1896.2,1.4281]
[1741930521318,0.6996,1896.3,1896.2,1.4281]
[1741930522119,3.29184,1896.4,1896.2,2.48301]
[1741930522320,3.29184,1896.4,1896.2,2.1265]
[1741930522615,3.29184,1896.4,1896.3,1.4281]
[1741930525907,6.49964,1896.4,1896.3,1.4281]
[1741930526112,3.29184,1896.4,1896.3,1.4281]
[1741930526312,6.49964,1896.4,1896.3,1.4281]
[1741930527420,3.29184,1896.4,1896.3,1.4281]
[1741930532416,4.59104,1896.4,1896.3,1.4281]
[1741930534126,2.35404,1896.4,1896.3,1.4281]
[1741930540623,2.35404,1896.4,1895.3,3.2078]
[1741930540624,1.05539,1895.4,1895.3,3.2078]
[1741930540832,2.236,1895.7,1895.3,3.9084]
[1741930541130,1.05536,1895.5,1895.4,1.3009]
[1741930544735,1.05532,1895.5,1895.4,1.3009]
[1741930549325,4.65770246,1895.6,1895.4,2.35625]
[1741930549524,1.3466,1895.5,1895.4,2.35625]
[1741930549823,0.00792246,1895.6,1895.5,1.05532]
[1741930550133,0.00792246,1895.6,1895.3,3.91632246]
[1741930550335,0.00792246,1895.6,1895.5,1.05532]
[1741930550821,0.00792246,1895.6,1895.3,3.91632246]
[1741930551019,1.06318246,1895.6,1895.4,1.05534]
[1741930551233,2.45088246,1895.6,1895.4,1.05534]
[1741930554140,1.39562246,1895.6,1895.3,3.91632246]
[1741930554327,0.00792246,1895.6,1895.5,4.26312]
[1741930556535,1.36732246,1895.6,1895.5,4.26312]
[1741930557240,1.36732246,1895.6,1895.4,9.706]
[1741930557434,1.05532,1895.5,1895.4,9.706]
[1741930558432,1.36732246,1895.6,1895.4,9.706]
[1741930558642,1.05532,1895.5,1895.4,9.706]
[1741930558833,1.05537,1895.4,1895.3,3.91632246]
[1741930559032,2.41477,1895.4,1895.3,3.91632246]
[1741930559736,1.3594,1895.4,1895.3,4.97175246]
[1741930560539,0.00792246,1895.6,1895.3,3.91632246]
[1741930561041,0.00792246,1895.6,1895.5,1.05532]
[1741930561526,1.36122246,1895.6,1895.5,1.05532]
[1741930561729,2.41648246,1895.6,1895.5,1.05532]
[1741930562043,2.41648246,1895.6,1895.4,1.05533]
[1741930562840,2.41648246,1895.6,1895.5,1.3076]
[1741930564447,2.41648246,1895.6,1895.5,2.36292]
[1741930564637,1.36122246,1895.6,1895.5,2.36292]
[1741930566139,0.00792246,1895.6,1895.5,2.36292]
[1741930567142,2.39308246,1895.6,1895.5,2.36292]
[1741930567538,1.33782246,1895.6,1895.5,2.36292]
[1741930568146,0.00792246,1895.6,1895.5,5.57072]
[1741930568747,2.37638246,1895.6,1895.5,5.57072]
[1741930568941,1.32112246,1895.6,1895.5,5.57072]
[1741930569450,1.75966,1896.0,1895.8,1.05511]
[1741930569654,3.07286,1896.0,1895.9,2.7113]
[1741930569948,1.3132,1896.0,1895.9,3.76639]
[1741930572251,2.36824,1896.0,1895.9,2.7113]
[1741930572861,1.3132,1896.0,1895.9,3.76639]
[1741930573450,1.3132,1896.0,1895.9,6.97419]
[1741930573752,1.74156,1896.2,1896.0,1.05501]
[1741930573951,1.74156,1896.2,1896.1,1.3327]
[1741930575153,1.3695,1896.2,1896.1,1.3327]
[1741930575451,2.42443,1896.2,1896.1,1.3327]
[1741930575647,3.08603,1896.2,1896.1,1.3327]
[1741930576251,2.0311,1896.2,1896.1,1.3327]
[1741930576449,1.3695,1896.2,1896.1,2.38768]
[1741930580355,2.42443,1896.2,1896.1,1.3327]
[1741930580657,3.83873,1896.2,1896.1,1.3327]
[1741930581052,2.7838,1896.2,1896.1,1.3327]
[1741930581246,2.0842,1896.2,1896.1,2.38768]
[1741930581452,1.3695,1896.2,1896.1,2.38768]
[1741930586463,0.7147,1896.5,1896.1,4.5405]
[1741930586666,1.358,1896.6,1896.5,1.05476]
[1741930586965,3.2917,1896.7,1896.5,1.05476]
[1741930587164,2.237,1896.7,1896.4,1.30882246]
[1741930587368,0.6695,1896.6,1896.4,1.30882246]
[1741930587565,1.05472,1896.6,1896.5,1.75926]
[1741930587758,2.237,1896.7,1896.6,1.0547]
[1741930587960,6.8072,1896.8,1896.6,1.3009]
[1741930588160,1.05465,1896.7,1896.6,1.3009]
[1741930590765,1.05472,1896.6,1896.4,1.06269246]
[1741930590969,1.05472,1896.6,1896.5,1.4364]
[1741930591164,6.8072,1896.8,1896.4,0.00792246]
[1741930591469,0.6527,1896.5,1896.4,1.44432246]
[1741930591668,6.1133,1896.8,1896.4,1.44432246]
[1741930591869,1.70739,1896.7,1896.5,1.70405]
[1741930592076,1.70739,1896.7,1896.6,1.4364]
[1741930596369,0.6527,1896.7,1896.6,2.4911]
[1741930596783,0.6527,1896.7,1896.6,1.4364]
[1741930596983,1.70735,1896.7,1896.6,1.4364]
[1741930597480,0.6527,1896.7,1896.6,1.4364]
[1741930597785,7.16793,1896.8,1896.6,2.4911]
[1741930598285,7.16793,1896.8,1896.7,1.4072]
[1741930599583,3.8824,1897.0,1896.7,1.4072]
[1741930599881,6.7863,1897.0,1896.7,1.4072]
[1741930600187,1.05459,1896.8,1896.7,1.4072]
[1741930600379,1.05459,1896.8,1896.7,2.1024]
[1741930601086,1.05980533,1897.2,1896.7,5.3102]
[1741930601287,1.05454,1896.9,1896.8,5.2652]
[1741930601489,0.7067,1897.1,1896.8,2.0574]
[1741930601686,1.0545,1897.0,1896.9,1.3887]
[1741930601889,1.7297,1897.0,1896.9,1.3887]
[1741930602288,1.72968,1897.0,1896.9,1.3887]
[1741930602481,3.14488,1897.0,1896.9,1.3887]
[1741930603592,1.4152,1897.0,1896.9,1.3887]
[1741930603785,2.46968,1897.0,1896.9,1.3887]
[1741930604693,3.14018,1897.0,1896.9,1.3887]
[1741930608396,1.4152,1897.0,1896.9,2.44324]
[1741930608591,2.46968,1897.0,1896.9,1.3887]
[1741930609592,1.4152,1897.0,1896.9,2.44324]
[1741930609792,0.6609,1897.3,1896.9,1.3887]
[1741930609793,3.8687,1897.3,1896.9,1.3887]
[1741930609995,1.0544,1897.2,1897.0,3.02667]
[1741930610195,1.0544,1897.2,1897.1,0.7114]
[1741930611200,2.4478,1897.2,1897.1,2.0688]
[1741930611693,2.4478,1897.2,1897.1,1.3574]
[1741930612002,1.05448,1897.0,1896.9,0.7114]
[1741930612299,1.05448,1897.0,1896.9,1.3574]
[1741930612689,3.15998,1897.0,1896.9,1.3574]
[1741930614200,1.3934,1897.0,1896.9,1.3574]
[1741930614397,3.2078,1897.1,1896.9,1.3574]
[1741930614605,1.418,1897.0,1896.9,2.4119]
[1741930614998,1.418,1897.0,1896.9,1.3574]
[1741930615204,1.418,1897.0,1896.9,2.41194]
[1741930615891,3.30136,1897.3,1897.1,1.05443]
[1741930616096,1.418,1897.2,1896.8,3.2078]
[1741930616299,2.47237,1897.2,1897.0,1.05443]
[1741930616694,1.418,1897.2,1897.0,1.05443]
[1741930616891,4.26208,1897.4,1897.2,1.05435]
[1741930617295,5.65948,1897.4,1897.2,1.05435]
[1741930617701,5.65948,1897.4,1897.3,1.05431]
[1741930617702,1.3974,1897.4,1897.3,1.05431]
[1741930618010,1.3974,1897.4,1897.2,3.2078]
[1741930618198,1.3974,1897.4,1897.2,4.26215]
[1741930618505,1.3974,1897.4,1897.3,1.05431]
[1741930619094,5.4548,1897.7,1897.2,3.2078]
[1741930619297,1.3974,1897.5,1897.3,1.05428]
[1741930619702,2.45162,1897.5,1897.3,1.05428]
[1741930620199,1.05418,1897.6,1897.3,1.05428]
[1741930620399,2.46028,1897.6,1897.4,1.05423]
[1741930620600,1.4061,1897.6,1897.4,1.05423]
[1741930620907,2.46026,1897.6,1897.4,1.05423]
[1741930621502,2.46026,1897.6,1897.2,3.2078]
[1741930621503,1.4061,1897.6,1897.2,3.2078]
[1741930621803,4.27029244,1898.0,1897.4,3.2078]
[1741930622108,1.05407,1897.8,1897.6,4.26193]
[1741930622502,1.4061,1897.7,1897.6,4.26193]
[1741930624300,2.9075,1897.9,1897.6,3.2078]
[1741930624503,1.3506,1897.8,1897.7,1.05409]
[1741930624707,1.3506,1897.9,1897.7,1.05405]
[1741930625109,1.05778734,1898.0,1897.8,1.05402]
[1741930625299,2.40838734,1898.0,1897.8,1.05402]
[1741930625497,1.35444734,1898.0,1897.8,1.05402]
[1741930625708,2.40838734,1898.0,1897.8,1.05402]
[1741930626010,2.40838734,1898.0,1897.6,3.2078]
[1741930626210,2.40838734,1898.0,1897.8,1.054]
[1741930626403,1.05778734,1898.0,1897.9,0.6739]
[1741930626603,2.39758734,1898.0,1897.9,0.6739]
[1741930628513,0.00384734,1898.0,1897.9,1.72788]
[1741930628710,0.00384734,1898.0,1897.9,0.6739]
[1741930629013,0.00384734,1898.0,1897.9,1.72788]
[1741930629212,1.43184734,1898.0,1897.9,1.72788]
[1741930629810,2.48577734,1898.0,1897.9,0.6739]
[1741930630912,1.43184734,1898.0,1897.9,1.72788]
[1741930631713,1.43184734,1898.0,1897.9,2.39698]
[1741930632317,3.2078,1898.2,1898.1,1.05387]
[1741930633008,1.3442,1898.4,1898.0,4.6404]
[1741930633209,1.3442,1898.4,1898.1,1.4326]
[1741930633409,1.3442,1898.4,1898.2,1.05378]
[1741930633410,2.39792,1898.4,1898.2,1.05378]
[1741930633709,1.3442,1898.4,1898.3,3.15546]
[1741930634112,2.3979,1898.4,1898.3,2.1017]
[1741930634420,1.05379,1898.3,1898.1,1.05384]
[1741930634715,3.07609,1898.3,1898.1,2.0859]
[1741930635016,1.05381,1898.2,1898.1,2.0859]
[1741930635214,1.3442,1898.2,1898.1,1.70717]
[1741930635809,2.39801,1898.2,1898.1,0.6533]
[1741930636016,1.3442,1898.2,1898.1,0.6533]
[1741930636317,1.3442,1898.2,1898.1,1.70717]
[1741930638804,3.9029,1898.6,1898.3,1.05374]
[1741930639021,5.35517,1898.5,1898.3,1.05374]
[1741930639211,1.388,1898.4,1898.3,1.05374]
[1741930639818,2.44173,1898.4,1898.2,1.05379]
[1741930640415,1.388,1898.3,1898.2,1.05379]
[1741930640617,2.44179,1898.3,1898.1,1.70715]
[1741930640808,2.0581,1898.3,1898.2,1.05381]
[1741930641010,1.72386,1898.3,1898.1,1.70713]
[1741930641311,0.6701,1898.3,1898.2,1.05381]
[1741930643612,5.4548,1898.6,1898.3,1.05373]
[1741930643822,2.38157,1898.5,1898.3,1.05373]
[1741930644115,2.38157,1898.5,1898.4,0.7103]
[1741930644414,1.73067,1898.5,1898.4,0.7103]
[1741930644619,1.73065,1898.5,1898.4,0.7103]
[1741930645223,1.05372,1898.4,1898.2,1.05377]
[1741930645527,1.05372,1898.4,1898.3,1.05376]
[1741930645718,2.38158,1898.5,1898.3,1.05376]
[1741930646819,2.38158,1898.5,1898.2,1.0538]
[1741930646820,1.05374,1898.4,1898.2,1.0538]
[1741930647222,1.3279,1898.5,1898.1,0.7103]
[1741930647414,1.3279,1898.5,1898.0,4.9498]
[1741930647615,1.3279,1898.5,1898.0,4.5984]
[1741930647922,1.3279,1898.5,1898.0,5.65229]
[1741930647923,1.05382,1898.2,1898.0,5.65229]
[1741930648123,1.3279,1898.5,1898.0,4.5984]
[1741930648323,1.05378,1898.3,1898.1,1.05385]
[1741930649025,1.3924,1898.2,1898.1,1.05385]
[1741930649635,1.3924,1898.2,1898.0,5.65227]
[1741930650927,2.44623,1898.2,1898.0,5.65227]
[1741930651731,1.05379,1898.3,1898.1,1.05385]
[1741930651934,1.05379,1898.3,1898.0,5.65229]
[1741930652123,1.3876,1898.5,1898.0,5.65229]
[1741930652630,1.05383,1898.2,1898.1,1.3908]
[1741930653739,1.05381,1898.3,1898.1,2.44467]
[1741930653937,1.05376,1898.3,1898.2,1.4311]
[1741930654241,1.05374,1898.4,1898.2,1.4311]
[1741930654441,1.3876,1898.5,1898.2,1.4311]
[1741930654737,1.05376,1898.3,1898.2,1.4311]
[1741930655241,2.44127,1898.5,1898.3,1.05373]
[1741930655445,4.69327,1898.5,1898.4,1.4311]
[1741930659146,1.05367,1898.5,1898.4,1.4311]
[1741930659849,1.05362,1898.6,1898.4,2.48476]
[1741930660043,3.6195,1898.7,1898.4,1.4311]
[1741930660242,1.05362,1898.6,1898.5,1.418]
[1741930660448,4.26142,1898.6,1898.5,1.418]
[1741930662544,1.0537,1898.4,1898.3,0.7023]
[1741930663142,1.0537,1898.4,1898.3,1.3062]
[1741930663338,1.0537,1898.4,1897.7,2.63515]
[1741930663339,5.4628,1898.4,1897.7,3.2078]
[1741930663537,1.05397,1898.0,1897.9,1.3062]
[1741930663739,1.05404,1897.8,1897.6,1.3139]
[1741930664043,0.6576,1897.9,1897.7,1.3062]
[1741930664347,1.71162,1897.9,1897.7,1.3062]
[1741930664538,0.6576,1897.9,1897.7,1.3062]
[1741930664739,1.71163,1897.9,1897.7,1.3062]
[1741930665240,1.05404,1897.8,1897.7,1.3062]
[1741930666247,1.71163,1897.9,1897.7,1.3062]
[1741930666742,2.258,1898.3,1897.7,4.514]
[1741930667048,0.6923,1898.0,1897.7,4.514]
[1741930667242,4.97541,1897.9,1897.8,1.3367]
[1741930667835,0.7136,1897.9,1897.6,1.3139]
[1741930668044,1.05407,1897.8,1897.7,1.3367]
[1741930668240,3.9214,1897.9,1897.5,3.21572246]
[1741930668446,1.05415,1897.6,1897.5,3.21572246]
[1741930668753,1.05415,1897.6,1897.5,4.55242246]
[1741930670149,4.26195,1897.6,1897.5,0.00792246]
[1741930670642,5.66515,1897.6,1897.5,0.00792246]
[1741930672345,9.83498071,1897.6,1896.8,3.2078]
[1741930672645,1.0545,1897.0,1896.8,4.5465]
[1741930672849,1.0545,1897.0,1896.9,1.4397]
[1741930673147,2.266,1897.1,1896.4,35.632]
[1741930673148,5.4738,1897.1,1896.6,3.2078]
[1741930673347,1.05458,1896.9,1896.6,4.26248]
[1741930673549,1.05458,1896.9,1896.7,1.44760118]
[1741930673747,1.05457,1896.9,1896.7,1.44760118]
[1741930674344,1.05458,1896.9,1896.7,1.44760118]
[1741930674550,1.05454,1896.9,1896.7,1.44760118]
[1741930675146,0.00785153,1897.0,1896.7,2.50224118]
[1741930675446,1.06237153,1897.0,1896.7,2.50221118]
[1741930675646,1.06237153,1897.0,1896.8,2.1008]
[1741930675848,1.06237153,1897.0,1896.9,1.4392]
[1741930678646,1.06233153,1897.0,1896.9,1.4392]
[1741930678851,1.06233153,1897.0,1896.9,2.159]
[1741930680053,1.06233153,1897.0,1896.9,1.4392]
[1741930684861,3.32133153,1897.0,1896.9,1.4392]
[1741930685552,1.05459,1896.8,1896.7,0.68940118]
[1741930685753,1.05459,1896.8,1896.7,2.12810118]
[1741930686562,1.73299,1896.8,1896.7,2.12810118]
[1741930687555,1.73299,1896.8,1896.7,0.00790118]
[1741930687756,1.0547,1896.6,1896.5,5.978]
[1741930687957,1.05481,1896.5,1896.4,1.9941]
[1741930689764,1.05481,1896.4,1896.3,0.00790118]
[1741930689967,7.24331,1896.4,1896.3,0.00790118]
[1741930693470,3.31981,1896.4,1896.3,0.00790118]
[1741930693674,3.31981,1896.4,1896.3,0.70440118]
[1741930695768,3.31981,1896.4,1896.3,0.00790118]
[1741930700272,6.52761,1896.4,1896.3,0.00790118]
[1741930700470,1.05498,1896.1,1896.0,3.9018]
[1741930700675,3.31998,1896.1,1896.0,3.9018]
[1741930701878,4.63668,1896.1,1896.0,5.2102]
[1741930702676,3.5817,1896.1,1896.0,5.2102]
[1741930702877,3.31998,1896.1,1896.0,5.2102]
[1741930706180,2.265,1896.1,1896.0,5.2102]
[1741930706371,1.3002,1896.2,1896.0,5.2102]
[1741930706574,3.2078,1896.6,1896.1,1.414]
[1741930706879,2.263,1896.5,1896.2,0.6858]
[1741930707183,1.05481,1896.4,1896.3,2.0914]
[1741930707377,2.36951,1896.4,1896.3,2.0914]
[1741930715885,4.62751,1896.4,1896.3,2.0914]
[1741930720695,2.36951,1896.4,1896.3,2.0914]
[1741930720988,2.36951,1896.4,1896.3,3.14627]
[1741930720989,2.255,1896.4,1896.3,3.14627]
[1741930721690,1.05477,1896.5,1896.3,3.14627]
[1741930721894,1.05477,1896.5,1896.4,1.3708]
[1741930722486,1.05472,1896.6,1896.4,5.63338]
[1741930722691,1.05476,1896.5,1896.4,1.3708]
[1741930722998,1.05476,1896.5,1896.3,7.71025]
[1741930724296,1.05476,1896.5,1896.4,3.2078]
[1741930724497,2.48273,1896.6,1896.4,4.26261]
[1741930724696,2.48273,1896.6,1896.4,1.05481]
[1741930724989,1.428,1896.6,1896.4,1.05478]
[1741930725192,1.0547,1896.7,1896.5,1.05476]
[1741930725397,2.4812,1896.7,1896.6,0.6646]
[1741930728697,1.05467,1896.7,1896.5,1.05475]
[1741930728892,1.4274,1896.7,1896.4,4.94179]
[1741930729086,2.4821,1896.7,1896.4,4.94179]
[1741930729292,2.4821,1896.7,1896.4,3.887]
[1741930729485,1.05465,1896.7,1896.4,3.887]
[1741930729693,2.48205,1896.7,1896.5,1.05474]
[1741930730098,1.4274,1896.7,1896.6,1.0547]
[1741930730491,1.4274,1896.7,1896.4,3.887]
[1741930730694,1.4274,1896.7,1896.5,1.05471]
[1741930730892,2.48205,1896.7,1896.5,1.05471]
[1741930731199,1.4274,1896.7,1896.4,3.887]
[1741930731397,1.4274,1896.7,1896.6,1.0547]
[1741930731701,2.48205,1896.7,1896.5,1.05472]
[1741930734890,1.3005,1896.6,1896.5,1.05472]
[1741930735095,2.3552,1896.6,1896.5,1.05472]
[1741930735307,2.35525,1896.6,1896.4,4.94179]
[1741930735801,1.3005,1896.6,1896.4,3.887]
[1741930736003,1.3107,1896.5,1896.4,4.94181]
[1741930736501,1.3107,1896.5,1896.4,5.63121]
[1741930736899,2.36546,1896.5,1896.4,4.5764]
[1741930737103,1.3107,1896.5,1896.4,4.5764]
[1741930737310,1.3107,1896.5,1896.4,5.63121]
[1741930738300,1.3107,1896.5,1896.4,4.5764]
[1741930739202,6.7685,1896.5,1896.0,9.1858]
[1741930739508,1.05493,1896.2,1896.0,9.8403]
[1741930740006,1.356,1896.1,1896.0,9.8403]
[1741930740194,1.356,1896.1,1896.0,3.8623]
[1741930740402,2.41098,1896.1,1896.0,3.2078]
[1741930740605,3.08308,1896.1,1896.0,3.2078]
[1741930741496,3.76338,1896.1,1896.0,3.2078]
[1741930742500,3.76338,1896.1,1896.0,4.5102]
[1741930743003,2.0363,1896.1,1896.0,4.5102]
[1741930743200,1.356,1896.1,1896.0,4.5102]
[1741930743602,2.41098,1896.1,1896.0,4.5102]
[1741930744305,1.4201,1896.4,1896.0,4.5102]
[1741930744510,3.5752,1896.3,1896.1,1.3024]
[1741930744711,1.3242,1896.3,1896.2,0.7046]
[1741930744911,1.77306,1896.4,1896.2,2.42733]
[1741930745111,2.36826,1896.4,1896.3,1.3003]
[1741930746309,1.3134,1896.4,1896.3,1.3003]
[1741930746510,1.3134,1896.4,1896.3,2.35517]
[1741930746719,1.3134,1896.4,1896.3,1.3003]
[1741930746914,1.3134,1896.4,1896.3,2.35517]
[1741930747612,1.05477,1896.5,1896.3,2.35514]
[1741930747813,1.05477,1896.5,1896.4,1.3003]
[1741930750917,1.05481,1896.4,1896.3,5.978]
[1741930751121,2.43721,1896.4,1896.3,7.2777]
[1741930751321,1.3824,1896.4,1896.3,7.2777]
[1741930751820,1.05473,1896.6,1896.3,8.33254]
[1741930752017,2.43713,1896.6,1896.4,1.2997]
[1741930752417,1.3824,1896.5,1896.4,1.2997]
[1741930753723,4.02685,1896.7,1896.5,1.05475]
[1741930753919,4.3546,1896.7,1896.6,1.2997]
[1741930754132,4.02685,1896.7,1896.6,1.2997]
[1741930754428,1.77285,1896.7,1896.6,1.2997]
[1741930754732,1.05465,1896.7,1896.6,1.2997]
[1741930756432,1.4027,1896.9,1896.6,1.2997]
[1741930756727,1.4027,1896.9,1896.7,1.05463]
[1741930756728,1.05454,1896.9,1896.7,1.05463]
[1741930756932,1.05454,1896.9,1896.8,1.3174]
[1741930760026,1.05465,1896.7,1896.6,3.2078]
[1741930760626,0.00785153,1897.0,1896.6,3.2078]
[1741930761028,1.05454,1896.9,1896.6,4.26249]
[1741930761336,1.05454,1896.9,1896.7,1.4308]
[1741930761932,1.05459,1896.8,1896.7,1.4308]
[1741930762131,0.00785153,1897.0,1896.7,1.4308]
[1741930762327,1.05454,1896.9,1896.7,1.4308]
[1741930762532,1.05459,1896.8,1896.7,1.4308]
[1741930765337,1.05458,1896.9,1896.7,1.4308]
[1741930765637,1.05454,1896.9,1896.7,1.4308]
[1741930766431,1.05459,1896.8,1896.7,1.4308]
[1741930766627,1.05459,1896.8,1896.7,2.1057]
[1741930766834,1.05457,1896.9,1896.7,2.1057]
[1741930767133,1.05457,1896.9,1896.8,1.397]
[1741930768538,3.31236153,1897.0,1896.8,5.65935]
[1741930768740,3.31236153,1897.0,1896.9,2.0534]
[1741930769330,1.06236153,1897.0,1896.9,2.0534]
[1741930769543,1.06233153,1897.0,1896.9,2.0534]
[1741930771441,1.06233153,1897.0,1896.9,1.397]
[1741930772530,2.38123153,1897.0,1896.9,1.397]
[1741930774745,1.78695138,1897.3,1896.9,5.978]
[1741930774935,3.10585138,1897.3,1897.0,1.3702]
[1741930775137,1.3189,1897.3,1897.1,4.26219]
[1741930775340,2.37321,1897.3,1897.2,1.3634]
[1741930775641,1.3189,1897.3,1897.2,1.3634]
[1741930776345,1.3189,1897.3,1897.2,2.41777]
[1741930776544,0.00790118,1897.4,1897.2,2.41773]
[1741930776742,1.31010118,1897.4,1897.3,5.2724]
[1741930776945,0.00790118,1897.4,1897.3,5.2724]
[1741930777748,1.31010118,1897.4,1897.3,5.2724]
[1741930778746,2.36436118,1897.4,1897.3,5.2724]
[1741930779244,1.31010118,1897.4,1897.3,5.2724]
[1741930780044,1.31010118,1897.4,1897.3,6.32671]
[1741930780742,1.31010118,1897.4,1897.3,5.2724]
[1741930781145,1.31010118,1897.4,1897.3,6.32671]
[1741930781441,1.31010118,1897.4,1897.3,5.2724]
[1741930782149,2.36436118,1897.4,1897.3,5.9318]
[1741930784048,1.31010118,1897.4,1897.3,5.9318]
[1741930784953,1.31010118,1897.4,1897.3,6.98611]
[1741930785749,0.00790118,1897.4,1897.3,6.98611]
[1741930786051,3.2078,1898.2,1897.3,14.4098]
[1741930786251,1.4157,1898.0,1897.9,4.26177]
[1741930786748,3.6747,1898.3,1898.1,1.05382]
[1741930786943,1.05373,1898.4,1898.1,4.26162]
[1741930787248,0.00790118,1898.4,1898.3,4.26151]
[1741930787555,0.00790118,1898.4,1898.3,5.66181]
[1741930788243,0.00790118,1898.4,1898.3,11.63981]
[1741930788648,0.00790118,1898.4,1898.3,14.13981]
[1741930788853,0.00790118,1898.4,1898.3,11.63981]
[1741930789258,0.00790118,1898.4,1898.3,12.29481]
[1741930792252,1.13250138,1898.9,1898.6,1.05354]
[1741930792459,2.54580138,1898.9,1898.7,4.6216]
[1741930792757,2.54580138,1898.9,1898.8,1.4138]
[1741930793054,2.54578138,1898.9,1898.8,1.4138]
[1741930793258,1.49235138,1898.9,1898.8,1.4138]
[1741930794055,2.54578138,1898.9,1898.8,1.4138]
[1741930800563,1.49235138,1898.9,1898.8,1.4138]
[1741930800764,2.54578138,1898.9,1898.8,1.4138]
[1741930800959,1.49235138,1898.9,1898.8,1.4138]
[1741930801265,2.54578138,1898.9,1898.8,1.4138]
[1741930801559,1.05348,1898.8,1898.7,3.2078]
[1741930801858,2.38578,1898.8,1898.7,3.2078]
[1741930802059,2.38578,1898.8,1898.7,1.3985]
[1741930804359,1.3323,1898.8,1898.7,1.3985]
[1741930804762,2.38578,1898.8,1898.7,4.6063]
[1741930809260,1.3323,1898.8,1898.7,4.6063]
[1741930809563,1.13249138,1898.9,1898.7,6.31864]
[1741930809758,2.46558,1898.8,1898.7,3.8666]
[1741930810960,2.46558,1898.8,1898.7,3.2078]
[1741930811971,1.4121,1898.8,1898.7,3.2078]